[Event "BL Meisterschaftsturnier 2020"]
[Site "Karlsruhe"]
[Date "2020.09.19"]
[Round "6.16"]
[White "Rafiee, Makan"]
[Black "Colbow, Collin"]
[Result "1/2-1/2"]
[ECO "B66"]
[WhiteElo "2334"]
[BlackElo "2210"]
[Annotator "NA"]
[PlyCount "78"]
[EventDate "2020.09.16"]
[EventType "team-tourn"]
[EventCountry "GER"]
[SourceTitle "playchess.com"]
[Source "ChessBase"]
[SourceQuality "1"]
[WhiteTeam "Bayern Muenchen"]
[BlackTeam "Werder Bremen"]
[TimeControl "40/5400+30:1800+30"]

1. e4 {[%emt 0:00:00]} c5 {[%emt 0:00:00]} 2. Nf3 {[%emt 0:00:00]} d6 {[%emt 0:00:00]} 3. d4 {[%emt 0:00:00]} cxd4 {[%emt 0:00:00]} 4. Nxd4 {[%emt 0:00:00]} Nf6 {[%emt 0:00:00]} 5. Nc3 {[%emt 0:00:00]} Nc6 {[%emt 0:00:00]} 6. Bg5 {[%emt 0:00:14]} e6 {[%emt 0:00:29]} 7. Qd2 {[%emt 0:00:07]} a6 {[%emt 0:00:12]} 8. O-O-O {[%emt 0:00:18]} Be7 {[%emt 0:01:48]} 9. h4 {[%emt 0:01:41]} Nxd4 {[%emt 0:04:01]} 10. Qxd4 {[%emt 0:00:06]} b5 {[%emt 0:02:45]} 11. Be2 {[%emt 0:05:25]} Qc7 {[%emt 0:07:06]} 12. f4 {[%emt 0:13:04]} Bb7 {[%emt 0:13:42]} 13. Bf3 {[%emt 0:04:49]} Rd8 {[%emt 0:11:54]} 14. h5 {[%emt 0:03:49]} h6 {[%emt 0:03:14]} 15. Bh4 {[%emt 0:00:17]} e5 {[%emt 0:03:43]} 16. Qe3 {[%emt 0:02:19]} exf4 {[%emt 0:03:14]} 17. Qxf4 {[%emt 0:01:24]} O-O {[%emt 0:02:14]} 18. Nd5 {[%emt 0:17:47]} Nxd5 {[%emt 0:07:43]} 19. exd5 {[%emt 0:00:21]} Rde8 {[%emt 0:01:12]} 20. Rhe1 {[%emt 0:08:06]} Qd8 {[%emt 0:05:53]} 21. Bxe7 {[%emt 0:02:37]} Rxe7 {[%emt 0:00:07]} 22. c3 {[%emt 0:14:48]} Rfe8 {[%emt 0:01:10]} 23. Rxe7 {[%emt 0:00:12]} Rxe7 {[%emt 0:04:18]} 24. Kc2 {[%emt 0:00:37]} Re5 {[%emt 0:01:00]} 25. Kb3 {[%emt 0:08:51]} Qc7 {[%emt 0:08:06]} 26. a4 {[%emt 0:02:50]} f5 {[%emt 0:13:16]} 27. axb5 {[%emt 0:00:34]} axb5 {[%emt 0:01:54]} 28. Qd4 {[%emt 0:00:21]} Qa5 {[%emt 0:01:10]} 29. g4 {[%emt 0:10:22]} Kf8 {[%emt 0:01:05]} 30. Qf4 {[%emt 0:01:04]} Kg8 {[%emt 0:01:11]} 31. Kc2 {[%emt 0:00:20]} Bc8 {[%emt 0:01:11]} 32. g5 {[%emt 0:00:32]} hxg5 {[%emt 0:00:43]} 33. Qxg5 {[%emt 0:00:01]} f4 {[%emt 0:01:07]} 34. Qxf4 {[%emt 0:00:27]} Bf5+ {[%emt 0:00:04]} 35. Kd2 {[%emt 0:00:14]} Qa2 {[%emt 0:00:39]} 36. Qb4 {[%emt 0:00:18]} Qa7 {[%emt 0:00:10]} 37. Qd4 {[%emt 0:00:48]} Qa2 {[%emt 0:01:14]} 38. Qb4 {[%emt 0:00:07]} Qa7 {[%emt 0:00:17]} 39. Qd4 {[%emt 0:00:04]} Qa2 {[%emt 0:00:47]} 1/2-1/2

[Event "BL Meisterschaftsturnier 2020"]
[Site "Karlsruhe"]
[Date "2020.09.20"]
[Round "7.7"]
[White "Polzin, Rainer"]
[Black "Zumsande, Martin"]
[Result "0-1"]
[ECO "C14"]
[WhiteElo "2415"]
[BlackElo "2456"]
[Annotator "ChessBase"]
[PlyCount "72"]
[EventDate "2020.09.16"]
[EventType "team-tourn"]
[EventCountry "GER"]
[SourceTitle "playchess.com"]
[Source "ChessBase"]
[SourceQuality "1"]
[WhiteTeam "SF Berlin"]
[BlackTeam "Werder Bremen"]
[TimeControl "40/5400+30:1800+30"]

1. e4 {[%emt 0:00:00]} e6 {[%emt 0:00:00]} 2. d4 {[%emt 0:00:00]} d5 {[%emt 0:00:00]} 3. Nc3 {[%emt 0:00:00]} Nf6 {[%emt 0:00:00]} 4. Bg5 {[%emt 0:00:00]} Be7 {[%emt 0:00:00]} 5. e5 {[%emt 0:00:00]} Nfd7 {[%emt 0:00:00]} 6. Bxe7 {[%emt 0:00:21]} Qxe7 {[%emt 0:00:04]} 7. f4 {[%emt 0:00:05]} a6 {[%emt 0:01:35]} 8. Nf3 {[%emt 0:00:05]} c5 {[%emt 0:00:11]} 9. Qd2 {[%emt 0:00:15]} Nc6 {[%emt 0:00:15]} 10. dxc5 {[%emt 0:00:11]} Nxc5 {[%emt 0:00:59]} 11. Bd3 {[%emt 0:00:27]} Bd7 {[%emt 0:04:10]} 12. O-O {[%emt 0:05:30]} O-O {[%emt 0:06:18]} 13. Rae1 {[%emt 0:04:02]} Rac8 {[%emt 0:24:09]} 14. a3 {[%emt 0:04:43]} f5 {[%emt 0:10:12]} 15. exf6 {[%emt 0:00:42]} Qxf6 {[%emt 0:00:07]} 16. Ne5 {[%emt 0:01:48]} Be8 {[%emt 0:04:57]} 17. g3 {[%emt 0:27:25]} Nxe5 {[%emt 0:07:53]} 18. Rxe5 {[%emt 0:04:50]} Bg6 {[%emt 0:08:17]} 19. Bxg6 {[%emt 0:06:44]} hxg6 {[%emt 0:04:10]} 20. Rfe1 {[%emt 0:03:31]} Rc6 {[%emt 0:01:08]} 21. Nd1 {[%emt 0:02:43]} Ne4 {[%emt 0:03:07]} 22. Qg2 {[%emt 0:25:22]} g5 {[%emt 0:00:06]} 23. Ne3 {[%emt 0:06:35]} gxf4 {[%emt 0:02:23]} 24. Ng4 {[%emt 0:00:01]} Qd8 {[%emt 0:08:30]} 25. gxf4 {[%emt 0:00:12]} Qb6+ {[%emt 0:00:39]} 26. Kh1 {[%emt 0:00:13]} Rxf4 {[%emt 0:00:32]} 27. R5xe4 {[%emt 0:03:07]} dxe4 {[%emt 0:02:05]} 28. Rg1 {[%emt 0:00:18]} Qxb2 {[%emt 0:01:38]} 29. Nh6+ {[%emt 0:00:52]} Kf8 {[%emt 0:01:36]} 30. Qd2 {[%emt 0:00:35]} Qf6 {[%emt 0:01:25]} 31. Ng4 {[%emt 0:00:12]} Rxg4 {[%emt 0:04:31]} 32. Rxg4 {[%emt 0:00:01]} e5 {[%emt 0:00:20]} 33. Qb4+ {[%emt 0:00:51]} Rd6 {[%emt 0:00:37]} 34. Qxe4 {[%emt 0:01:21]} Rd1+ {[%emt 0:01:35]} 35. Kg2 {[%emt 0:01:05]} Rd2+ {[%emt 0:00:15]} 36. Kh3 {[%emt 0:00:06]} Qf1+ {[%emt 0:00:32]} 0-1

[Event "BL Meisterschaftsturnier 2020"]
[Site "Karlsruhe"]
[Date "2020.09.20"]
[Round "7.8"]
[White "Wachinger, Nikolas"]
[Black "Florstedt, Johannes"]
[Result "1-0"]
[ECO "D85"]
[WhiteElo "2304"]
[BlackElo "2353"]
[Annotator "ChessBase"]
[PlyCount "37"]
[EventDate "2020.09.16"]
[EventType "team-tourn"]
[EventCountry "GER"]
[SourceTitle "playchess.com"]
[Source "ChessBase"]
[SourceQuality "1"]
[WhiteTeam "Werder Bremen"]
[BlackTeam "SF Berlin"]
[TimeControl "40/5400+30:1800+30"]

1. d4 {[%emt 0:00:00]} Nf6 {[%emt 0:00:00]} 2. c4 {[%emt 0:00:00]} g6 {[%emt 0:00:00]} 3. Nc3 {[%emt 0:00:00]} d5 {[%emt 0:00:00]} 4. cxd5 {[%emt 0:00:00]} Nxd5 {[%emt 0:00:00]} 5. Na4 {[%emt 0:00:02]} Bg7 {[%emt 0:04:26]} 6. e4 {[%emt 0:01:16]} Nb6 {[%emt 0:00:04]} 7. Nf3 {[%emt 0:00:21]} O-O {[%emt 0:00:16]} 8. Be3 {[%emt 0:00:14]} Bg4 {[%emt 0:02:14]} 9. Nc5 {[%emt 0:00:08]} Nc6 {[%emt 0:01:43]} 10. Nxb7 {[%emt 0:00:10]} Qc8 {[%emt 0:05:16]} 11. Nc5 {[%emt 0:00:18]} Bxf3 {[%emt 0:01:58]} 12. Qxf3 {[%emt 0:00:13]} Nxd4 {[%emt 0:00:43]} 13. Qd1 {[%emt 0:00:10]} a5 {[%emt 0:06:04]} 14. Bxd4 {[%emt 0:00:10]} Rd8 {[%emt 0:00:08]} 15. e5 {[%emt 0:00:07]} a4 {[%emt 0:51:33]} 16. f4 {[%emt 0:20:48]} Rd5 {[%emt 0:00:42]} 17. Qd3 {[%emt 0:02:06]} Qd8 {[%emt 0:05:49]} 18. Rd1 {[%emt 0:06:36]} Nd7 {[%emt 0:00:06]} 19. Qf3 {[%emt 0:00:35]} 1-0

[Event "BL Meisterschaftsturnier 2020"]
[Site "Karlsruhe"]
[Date "2020.09.20"]
[Round "7.11"]
[White "Bischoff, Klaus"]
[Black "Piceu, Tom"]
[Result "1/2-1/2"]
[ECO "E94"]
[WhiteElo "2503"]
[BlackElo "2347"]
[Annotator "RC"]
[PlyCount "39"]
[EventDate "2020.09.16"]
[EventType "team-tourn"]
[EventCountry "GER"]
[SourceTitle "playchess.com"]
[Source "ChessBase"]
[SourceQuality "1"]
[WhiteTeam "Bayern Muenchen"]
[BlackTeam "Aachen"]
[TimeControl "40/5400+30:1800+30"]

1. c4 {[%emt 0:00:00]} e5 {[%emt 0:00:00]} 2. Nc3 {[%emt 0:00:00]} Nf6 {[%emt 0:00:00]} 3. Nf3 {[%emt 0:00:00]} d6 {[%emt 0:00:26]} 4. d4 {[%emt 0:00:05]} Nbd7 {[%emt 0:00:34]} 5. e4 {[%emt 0:00:57]} g6 {[%emt 0:00:33]} 6. Be2 {[%emt 0:00:11]} Bg7 {[%emt 0:00:07]} 7. O-O {[%emt 0:00:10]} O-O {[%emt 0:00:04]} 8. Qc2 {[%emt 0:00:39]} a5 {[%emt 0:00:27]} 9. Rd1 {[%emt 0:01:17]} exd4 {[%emt 0:03:08]} 10. Nxd4 {[%emt 0:00:38]} Re8 {[%emt 0:00:09]} 11. Ndb5 {[%emt 0:06:27]} Nc5 {[%emt 0:05:21]} 12. f3 {[%emt 0:01:13]} Bd7 {[%emt 0:14:32]} 13. Be3 {[%emt 0:07:24]} Ne6 {[%emt 0:03:32]} 14. Qd2 {[%emt 0:03:53]} h5 {[%emt 0:00:29]} 15. Rac1 {[%emt 0:03:33]} h4 {[%emt 0:05:45]} 16. Bf1 {[%emt 0:11:32]} Nh5 {[%emt 0:05:52]} 17. Nd4 {[%emt 0:05:08]} Nc5 {[%emt 0:11:12]} 18. Ndb5 {[%emt 0:01:59]} Ne6 {[%emt 0:01:27]} 19. Nd4 {[%emt 0:01:24]} Nc5 {[%emt 0:00:07]} 20. Ndb5 {[%emt 0:00:48]} 1/2-1/2

[Event "BL Meisterschaftsturnier 2020"]
[Site "Karlsruhe"]
[Date "2020.09.20"]
[Round "7.13"]
[White "Lokander, Martin"]
[Black "Lemmers, Oscar"]
[Result "1-0"]
[ECO "D17"]
[WhiteElo "2406"]
[BlackElo "2348"]
[Annotator "ChessBase"]
[PlyCount "47"]
[EventDate "2020.09.16"]
[EventType "team-tourn"]
[EventCountry "GER"]
[SourceTitle "playchess.com"]
[Source "ChessBase"]
[SourceQuality "1"]
[WhiteTeam "Bayern Muenchen"]
[BlackTeam "Aachen"]
[TimeControl "40/5400+30:1800+30"]

1. d4 {[%emt 0:00:00]} d5 {[%emt 0:00:00]} 2. c4 {[%emt 0:00:00]} c6 {[%emt 0:00:00]} 3. Nf3 {[%emt 0:02:34]} Nf6 {[%emt 0:00:18]} 4. Nc3 {[%emt 0:00:04]} dxc4 {[%emt 0:00:15]} 5. a4 {[%emt 0:00:11]} Bf5 {[%emt 0:00:23]} 6. Ne5 {[%emt 0:00:29]} Nbd7 {[%emt 0:00:25]} 7. Nxc4 {[%emt 0:00:10]} Qc7 {[%emt 0:00:14]} 8. g3 {[%emt 0:00:12]} e5 {[%emt 0:00:24]} 9. dxe5 {[%emt 0:00:06]} Nxe5 {[%emt 0:00:10]} 10. Bf4 {[%emt 0:00:08]} Nfd7 {[%emt 0:00:22]} 11. a5 {[%emt 0:00:44]} a6 {[%emt 0:09:31]} 12. Bg2 {[%emt 0:01:47]} f6 {[%emt 0:03:00]} 13. Nxe5 {[%emt 0:03:22]} Nxe5 {[%emt 0:02:17]} 14. O-O {[%emt 0:05:24]} Rd8 {[%emt 0:07:25]} 15. Qa4 {[%emt 0:02:12]} Bd6 {[%emt 0:15:43]} 16. Be3 {[%emt 0:08:50]} Qf7 {[%emt 0:07:24]} 17. Bb6 {[%emt 0:00:48]} Rd7 {[%emt 0:05:13]} 18. Ne4 {[%emt 0:07:30]} Bxe4 {[%emt 0:01:43]} 19. Bxe4 {[%emt 0:01:13]} O-O {[%emt 0:08:14]} 20. Bf5 {[%emt 0:13:19]} Re7 {[%emt 0:00:15]} 21. Rfd1 {[%emt 0:01:13]} Nc4 {[%emt 0:03:20]} 22. Bb1 {[%emt 0:00:52]} Nxb2 {[%emt 0:02:42]} 23. Qc2 {[%emt 0:05:22]} Nxd1 {[%emt 0:03:45]} 24. Qxh7# {[%emt 0:00:09]} 1-0

[Event "BL Meisterschaftsturnier 2020"]
[Site "Karlsruhe"]
[Date "2020.09.20"]
[Round "7.15"]
[White "Rafiee, Makan"]
[Black "Lamby, Philipp"]
[Result "1-0"]
[ECO "C54"]
[WhiteElo "2334"]
[BlackElo "2130"]
[Annotator "ChessBase"]
[PlyCount "51"]
[EventDate "2020.09.16"]
[EventType "team-tourn"]
[EventCountry "GER"]
[SourceTitle "playchess.com"]
[Source "ChessBase"]
[SourceQuality "1"]
[WhiteTeam "Bayern Muenchen"]
[BlackTeam "Aachen"]
[TimeControl "40/5400+30:1800+30"]

1. e4 {[%emt 0:00:00]} e5 {[%emt 0:00:00]} 2. Nf3 {[%emt 0:00:00]} Nc6 {[%emt 0:00:00]} 3. Bc4 {[%emt 0:00:00]} Bc5 {[%emt 0:00:00]} 4. c3 {[%emt 0:00:07]} Nf6 {[%emt 0:00:02]} 5. d3 {[%emt 0:00:05]} a6 {[%emt 0:01:13]} 6. Nbd2 {[%emt 0:01:04]} O-O {[%emt 0:00:57]} 7. Bb3 {[%emt 0:00:51]} Ba7 {[%emt 0:01:38]} 8. h3 {[%emt 0:00:38]} d6 {[%emt 0:08:28]} 9. Nf1 {[%emt 0:03:37]} Be6 {[%emt 0:01:06]} 10. Bg5 {[%emt 0:05:53]} h6 {[%emt 0:27:13]} 11. Bh4 {[%emt 0:00:06]} g5 {[%emt 0:00:27]} 12. Nxg5 {[%emt 0:01:15]} hxg5 {[%emt 0:00:05]} 13. Bxg5 {[%emt 0:00:04]} Bxf2+ {[%emt 0:00:18]} 14. Ke2 {[%emt 0:01:20]} Kg7 {[%emt 0:08:14]} 15. Qd2 {[%emt 0:05:54]} Kg6 {[%emt 0:02:33]} 16. h4 {[%emt 0:10:01]} Bb6 {[%emt 0:10:19]} 17. Nh2 {[%emt 0:00:32]} Nxe4 {[%emt 0:06:03]} 18. dxe4 {[%emt 0:00:56]} Qd7 {[%emt 0:01:39]} 19. Bf6 {[%emt 0:06:26]} Bg4+ {[%emt 0:02:14]} 20. Kd3 {[%emt 0:01:05]} Kh7 {[%emt 0:03:35]} 21. Raf1 {[%emt 0:08:26]} Na5 {[%emt 0:11:05]} 22. Bg7 {[%emt 0:03:43]} Kxg7 {[%emt 0:03:46]} 23. Qg5+ {[%emt 0:00:05]} Kh8 {[%emt 0:01:32]} 24. Rf6 {[%emt 0:00:20]} Bf5 {[%emt 0:02:41]} 25. exf5 {[%emt 0:00:11]} e4+ {[%emt 0:00:02]} 26. Kxe4 1-0

[Event "BL Meisterschaftsturnier 2020"]
[Site "Karlsruhe"]
[Date "2020.09.20"]
[Round "7.16"]
[White "Jablonowski, Christoph"]
[Black "Schenk, Andreas"]
[Result "0-1"]
[ECO "E19"]
[WhiteElo "1969"]
[BlackElo "2431"]
[Annotator "ChessBase"]
[PlyCount "68"]
[EventDate "2020.09.16"]
[EventType "team-tourn"]
[EventCountry "GER"]
[SourceTitle "playchess.com"]
[Source "ChessBase"]
[SourceQuality "1"]
[WhiteTeam "Aachen"]
[BlackTeam "Bayern Muenchen"]
[TimeControl "40/5400+30:1800+30"]

1. d4 {[%emt 0:00:00]} Nf6 {[%emt 0:00:00]} 2. c4 {[%emt 0:00:00]} e6 {[%emt 0:00:00]} 3. Nf3 {[%emt 0:00:00]} b6 {[%emt 0:00:00]} 4. g3 {[%emt 0:00:00]} Bb7 {[%emt 0:00:07]} 5. Bg2 {[%emt 0:00:06]} Be7 {[%emt 0:00:07]} 6. O-O {[%emt 0:00:21]} O-O {[%emt 0:00:06]} 7. Nc3 {[%emt 0:08:34]} Ne4 {[%emt 0:00:17]} 8. Qc2 {[%emt 0:00:07]} Nxc3 {[%emt 0:00:14]} 9. Qxc3 {[%emt 0:00:05]} c5 {[%emt 0:00:19]} 10. dxc5 {[%emt 0:07:19]} bxc5 {[%emt 0:05:41]} 11. Rd1 {[%emt 0:09:43]} d6 {[%emt 0:07:43]} 12. h4 {[%emt 0:15:20]} Nc6 {[%emt 0:08:05]} 13. Bg5 {[%emt 0:07:46]} h6 {[%emt 0:05:48]} 14. Bxe7 {[%emt 0:02:38]} Qxe7 {[%emt 0:01:40]} 15. Rd2 {[%emt 0:06:07]} Rad8 {[%emt 0:00:48]} 16. Rad1 {[%emt 0:02:12]} f5 {[%emt 0:01:45]} 17. e3 {[%emt 0:04:15]} g5 {[%emt 0:11:26]} 18. hxg5 {[%emt 0:01:56]} hxg5 {[%emt 0:01:51]} 19. Nxg5 {[%emt 0:16:50]} Qxg5 {[%emt 0:01:36]} 20. Rxd6 {[%emt 0:00:07]} Nd4 {[%emt 0:13:45]} 21. exd4 {[%emt 0:00:13]} Rxd6 {[%emt 0:00:08]} 22. Bxb7 {[%emt 0:00:08]} Qg7 {[%emt 0:01:16]} 23. Bf3 {[%emt 0:03:34]} Rxd4 {[%emt 0:03:48]} 24. Re1 {[%emt 0:02:04]} f4 {[%emt 0:05:40]} 25. g4 {[%emt 0:06:24]} e5 {[%emt 0:03:26]} 26. Kg2 {[%emt 0:03:40]} Re8 {[%emt 0:01:52]} 27. Re4 {[%emt 0:03:10]} Rxe4 {[%emt 0:00:50]} 28. Bxe4 {[%emt 0:00:06]} Qxg4+ {[%emt 0:00:07]} 29. Kf1 {[%emt 0:00:30]} Qd1+ {[%emt 0:00:39]} 30. Kg2 {[%emt 0:00:47]} Re7 {[%emt 0:00:56]} 31. Kh2 {[%emt 0:00:55]} Qh5+ {[%emt 0:06:42]} 32. Kg1 {[%emt 0:00:20]} Rg7+ {[%emt 0:00:16]} 33. Kf1 {[%emt 0:00:34]} Qd1+ {[%emt 0:00:09]} 34. Qe1 {[%emt 0:00:05]} Rg1+ {[%emt 0:00:06]} 0-1